fUST/lending_fUST_20241208
["ID","MTS","AMOUNT","RATE_DAILY","PERIOD"]
[344619124,1733619047687,-1000.0,0.00029379,2]
[344619125,1733619047697,-1000.0,0.00029386,2]
[344619126,1733619047706,-300.0,0.000294,14]
[344619127,1733619047718,-587.0,0.00029402,2]
[344619128,1733619047728,-500.0,0.00029416,2]
[344619129,1733619047737,-519.55,0.00029416,2]
[344619130,1733619047746,-151.0,0.00029426,7]
[344619131,1733619047755,-151.0,0.00029426,7]
[344619132,1733619047764,-1000.0,0.00029548,5]
[344619133,1733619047773,-231.23078676,0.00029636,2]
[344619134,1733619047783,-411.40970814,0.0002969,2]
[344619135,1733619047792,-519.55,0.0002969,2]
[344619136,1733619047802,-151.0,0.00029863,7]
[344619137,1733619047811,-151.0,0.00029863,7]
[344619138,1733619047821,-2000.0,0.000299,2]
[344619139,1733619047830,-2000.0,0.000299,2]
[344619140,1733619047839,-386.14175045,0.000299,2]
[344619141,1733619047848,-153.1,0.000299,31]
[344619142,1733619047858,-153.1,0.000299,31]
[344619143,1733619047867,-153.1,0.000299,31]
[344619144,1733619047877,-153.1,0.000299,31]
[344619145,1733619047886,-153.1,0.000299,31]
[344619146,1733619047898,-153.1,0.000299,31]
[344619147,1733619047910,-153.1,0.000299,31]
[344619148,1733619047919,-153.1,0.000299,31]
[344619149,1733619047929,-153.1,0.000299,31]
[344619150,1733619047939,-153.1,0.000299,31]
[344619151,1733619047948,-153.1,0.000299,31]
[344619152,1733619047958,-153.1,0.000299,31]
[344619153,1733619047973,-519.55,0.00029964,2]
[344619154,1733619047988,-500.0,0.00029973,5]
[344619155,1733619047998,-550629.24683383,0.0002999,7]
[344619156,1733619048009,-159.0,0.0003,2]
[344619157,1733619048019,-2000.0,0.0003,60]
[344619158,1733619048029,-1500.0,0.0003,2]
[344619159,1733619048039,-1219.1494659,0.0003,3]
[344619160,1733619048049,-10.94981511,0.0003,120]
[344619161,1733619048059,-500.0,0.0003,120]
[344619162,1733619048069,-32695.62465827,0.0003,2]
[344619163,1733619048079,-44434.86164865,0.0003,3]
[344619164,1733619048089,-2497.45,0.0003,30]
[344619165,1733619048099,-16749.49,0.0003,30]
[344619166,1733619048109,-14046.0,0.0003,30]
[344619167,1733619048119,-57985.61743138,0.0003,2]
[344619168,1733619048128,-169.9605,0.0003,2]
[344619169,1733619048138,-157.596,0.0003,2]
[344619170,1733619048147,-231.23078676,0.00030027,2]
[344619171,1733619048157,-150.0,0.00030101,120]
[344619172,1733619048166,-681.08,0.00030136,7]
[344619173,1733619048176,-163.229352,0.00030137,120]
[344619174,1733619048186,-185.67736606,0.00030137,2]
[344619175,1733619048195,-400.0,0.00030194,2]
[344619176,1733619048206,-519.55,0.00030238,2]
[344619177,1733619048219,-587.0,0.00030317,2]
[344619178,1733619048229,-114633.85695701,0.00030318,120]
[344619179,1733619048239,-504.73129196,0.00030415,2]
[344619180,1733619048249,-231.23078676,0.00030418,2]
[344619181,1733619048259,-6870.3016927,0.00030425,2]
[344619182,1733619048268,-1000.0,0.00030499,14]
[344619183,1733619048278,-47656.8247,0.000305,120]
[344619184,1733619048288,-519.55,0.00030512,2]
[344619185,1733619048298,-95158.14637833,0.00030518,10]
[344619227,1733620232586,-162.97286763,0.00024066,2]
[344619229,1733620232597,-700.0,0.0002414,2]
[344619231,1733620232606,-195.49516103,0.00024166,2]
[344619233,1733620232615,-580.50916051,0.00024166,2]
[344619241,1733620232691,-1095.45473496,0.00024166,2]
[344619243,1733620232700,-252.290238,0.00024175,2]
[344619245,1733620232709,-150.0,0.000249,2]
[344619247,1733620232719,-300.0,0.000249,11]
[344619249,1733620232729,-175.78168779,0.00025063,2]
[344619251,1733620232738,-300.0,0.00025161,2]
[344619253,1733620232747,-300.0,0.00025161,2]
[344619256,1733620232760,-500.0,0.00025164,2]
[344619258,1733620232769,-30158.0,0.00025166,2]
[344619260,1733620232778,-24900.0,0.00025167,2]
[344619262,1733620232787,-370.3126044,0.00025337,2]
[344619264,1733620232797,-500.0,0.00025438,2]
[344619266,1733620232809,-178.999388,0.00025581,2]
[344619268,1733620232819,-500.0,0.00025712,2]
[344619270,1733620232828,-578.4284,0.00025986,2]
[344619272,1733620232838,-400.0,0.00026301,2]
[344619274,1733620232847,-300.0,0.000264,12]
[344619276,1733620232856,-370.31260436,0.00026602,2]
[344619278,1733620232865,-420.0,0.00027253,2]
[344619280,1733620232874,-400.0,0.00027275,2]
[344619282,1733620232884,-595.95,0.00027397,5]
[344619284,1733620232893,-1137.51717891,0.00027588,2]
[344619286,1733620232903,-420.0,0.00027677,2]
[344619288,1733620232912,-370.31260436,0.00027868,2]
[344619289,1733620232921,-300.0,0.000279,13]
[344619291,1733620232930,-400.0,0.00028248,2]
[344619293,1733620232939,-1137.51717891,0.00028291,2]
[344619295,1733620232948,-595.95,0.00028767,6]
[344619297,1733620232957,-153.16,0.000289,31]
[344619299,1733620232966,-153.16,0.000289,31]
[344619302,1733620232977,-153.16,0.000289,31]
[344619304,1733620232986,-155.098,0.0002898,2]
[344619306,1733620232995,-1137.51717891,0.00028993,2]
[344619308,1733620233004,-370.31260436,0.00029133,2]
[344619310,1733620233014,-400.0,0.00029221,2]
[344619312,1733620233023,-153.16,0.000293,31]
[344619314,1733620233033,-153.16,0.000293,31]
[344619316,1733620233044,-153.16,0.000293,31]
[344619318,1733620233054,-153.16,0.000293,31]
[344619320,1733620233066,-153.16,0.000293,31]
[344619322,1733620233076,-153.16,0.000293,31]
[344619324,1733620233085,-300.0,0.000294,14]
[344619326,1733620233095,-587.0,0.00029519,2]
[344619328,1733620233104,-1137.51717891,0.00029696,2]
[344619330,1733620233114,-9920.449203,0.00029706,2]
[344619332,1733620233123,-153.16,0.000298,31]
[344619334,1733620233133,-153.16,0.000298,31]
[344619336,1733620233143,-153.16,0.000298,31]
[344619338,1733620233152,-153.16,0.000298,31]
[344619340,1733620233162,-153.16,0.000298,31]
[344619342,1733620233172,-153.16,0.000298,31]
[344619344,1733620233182,-198.4913642,0.00029921,2]
[344619346,1733620233192,-500.0,0.00029921,2]
[344619348,1733620233201,-500.0,0.00029921,2]
[344619350,1733620233211,-500.0,0.00029921,2]
[344619351,1733620233220,-500.0,0.00029921,2]
[344619353,1733620233230,-499.07160382,0.00029921,2]
[344619356,1733620233241,-500.0,0.00029921,2]
[344619358,1733620233252,-500.0,0.00029921,2]
[344619359,1733620233263,-248.31268632,0.00029921,2]
[344619360,1733620233273,-500.0,0.00029921,2]
[344619362,1733620233284,-500.0,0.00029921,2]
[344619364,1733620233294,-389.31982034,0.00029921,2]
[344619434,1733620238646,-110.68017966,0.00029921,2]
[344619436,1733620238656,-500.0,0.00029921,2]
[344619438,1733620238666,-500.0,0.00029921,2]
[344619440,1733620238675,-500.0,0.00029921,2]
[344619442,1733620238689,-500.0,0.00029921,2]
[344619445,1733620238698,-500.0,0.00029921,2]
[344619448,1733620238708,-500.0,0.00029921,2]
[344619451,1733620238717,-500.0,0.00029921,2]
[344619453,1733620238727,-500.0,0.00029921,2]
[344619455,1733620238736,-500.0,0.00029921,2]
[344619457,1733620238746,-500.0,0.00029921,2]
[344619459,1733620238757,-500.0,0.00029921,2]
[344619461,1733620238767,-500.0,0.00029921,2]
[344619463,1733620238776,-500.0,0.00029921,2]
[344619465,1733620238786,-38.29682863,0.00029921,2]
[344619467,1733620238797,-461.70317137,0.00029921,2]
[344619469,1733620238807,-291.81222553,0.00029921,2]
[344619471,1733620238819,-208.18777447,0.00029921,2]
[344619473,1733620238828,-500.0,0.00029921,2]
[344619474,1733620238838,-500.0,0.00029921,2]
[344619476,1733620238847,-257.36221218,0.00029921,2]
[344619736,1733621308926,2596.13509237,0.0002,2]
[344619737,1733621318772,3610.75642293,0.0001999,2]
[344619782,1733621432999,-156.628801,0.00024959,2]
[344619783,1733621433010,-150.0,0.00025,2]
[344619784,1733621433021,-178.999388,0.0002552,2]
[344619785,1733621433031,-252.290238,0.00025743,2]
[344619786,1733621433041,-400.0,0.00026301,2]
[344619787,1733621433052,-300.0,0.00026875,2]
[344619788,1733621433062,-300.0,0.00026875,2]
[344619789,1733621433073,-7098.0702019,0.00026875,2]
[344619790,1733621433085,-421.49265646,0.00026875,2]
[344620109,1733621444190,-395.6920036,0.00026875,2]
[344620119,1733621685178,180.128344,0.00025999,60]
[344620120,1733621762816,6556.61771341,0.0002,2]
[344620154,1733622632183,-7443.38228659,0.0002,2]
[344620155,1733622632194,-300.0,0.00024856,2]
[344620156,1733622632203,-300.0,0.00024857,2]
[344620157,1733622632213,-582.9263,0.00024857,2]
[344620158,1733622632223,-180.2429494,0.00024857,2]
[344620159,1733622632232,-4817.26065035,0.00024858,2]
[344620161,1733622632241,-1766.81847942,0.00024858,2]
[344620162,1733622632252,-379.66991856,0.00024858,2]
[344620163,1733622632263,-11813.59113486,0.00024858,2]
[344620191,1733622638323,-369.99999999,0.000248,2]
[344620442,1733622640166,-655.69533696,0.000248,2]
[344620444,1733622640177,-10939.92046716,0.00024858,2]
[344620446,1733622640186,-329.300234,0.000249,11]
[344620448,1733622640196,-150.0,0.00025,2]
[344620450,1733622640205,-3547.0,0.00025,2]
[344620452,1733622640214,-197.54139643,0.00025769,2]
[344620454,1733622640225,-257.79157083,0.00025868,2]
[344620456,1733622640234,-278.74592604,0.00025868,2]
[344620458,1733622640243,-1895.79,0.00025869,2]
[344620460,1733622640253,-525.86667017,0.00025869,2]
[344620462,1733622640262,-8843.6917358,0.00025888,2]
[344620464,1733622640271,-8843.6917358,0.00026128,2]
[344620466,1733622640280,-1895.79,0.00026143,2]
[344620468,1733622640289,-400.0,0.00026301,2]
[344620470,1733622640298,-8843.6917358,0.00026348,2]
[344620472,1733622640308,-1895.79,0.00026416,2]
[344620474,1733622640317,-1895.79,0.0002669,2]
[344620476,1733622640326,-8843.6917358,0.0002681,2]
[344620478,1733622640335,-177.052948,0.00026896,2]
[344620480,1733622640344,-420.0,0.00026931,2]
[344620482,1733622640353,-1895.79,0.00026964,2]
[344620484,1733622640362,-1895.79,0.00027238,2]
[344620486,1733622640372,-400.0,0.00027275,2]
[344620488,1733622640381,-500.0,0.00027297,2]
[344620490,1733622640390,-608.26019808,0.00027297,2]
[344620492,1733622640400,-500.0,0.00027297,2]
[344620494,1733622640409,-500.0,0.00027297,2]
[344620496,1733622640418,-246.764,0.00027298,2]
[344620498,1733622640431,-534.65,0.00027298,2]
[344620500,1733622640443,-2223.099,0.00027298,2]
[344620502,1733622640452,-2385.027,0.00027298,2]
[344620504,1733622640462,-184.329,0.00027298,2]
[344620506,1733622640471,-420.0,0.00027342,2]
[344620508,1733622640480,-152.32025,0.000275,2]
[344620510,1733622640490,-1754.42029289,0.000275,2]
[344620512,1733622640499,-1895.79,0.00027512,2]
[344620514,1733622640508,-1895.79,0.00027786,2]
[344620516,1733622640517,-479.43780436,0.0002799,2]
[344620518,1733622640525,-1895.79,0.0002806,2]
[344620520,1733622640535,-400.0,0.00028248,2]
[344620522,1733622640544,-1895.79,0.00028334,2]
[344620524,1733622640554,-1895.79,0.00028608,2]
[344620526,1733622640563,-484.0,0.00028666,120]
[344620528,1733622640572,-155.14928522,0.00028683,2]
[344620530,1733622640581,-1895.79,0.00028882,2]
[344620532,1733622640590,-154.315,0.0002898,2]
[344620534,1733622640599,-576.59,0.00029044,5]
[344620536,1733622640608,-1895.79,0.00029156,2]
[344620538,1733622640619,-587.0,0.0002918,2]
[344620540,1733622640629,-400.0,0.00029221,2]
[344620542,1733622640639,-1895.79,0.0002943,2]
[344620544,1733622640648,-1895.79,0.00029704,2]
[344620546,1733622640657,-160.44,0.000298,31]
[344620548,1733622640666,-1895.79,0.00029978,2]
[344620550,1733622640683,-5000.0,0.0003,5]
[344620552,1733622640692,-2000.0,0.0003,2]
[344620554,1733622640702,-2000.0,0.0003,2]
[344620556,1733622640712,-1000.0,0.0003,2]
[344620558,1733622640723,-167.0,0.0003,2]
[344620561,1733622640733,-254.941,0.0003,2]
[344620563,1733622640744,-25209.897751,0.0003,30]
[344620564,1733622640757,-160.44,0.0003,31]
[344620566,1733622640767,-160.44,0.0003,31]
[344620568,1733622640776,-233.0,0.0003,2]
[344620570,1733622640785,-587.0,0.00030077,2]
[344620573,1733622640796,-155.00746426,0.00030117,2]
[344620574,1733622640806,-180.09451966,0.00030137,2]
[344620577,1733622640815,-163.229352,0.00030137,120]
[344620579,1733622640826,-400.0,0.00030194,2]
[344620581,1733622640836,-160.63641535,0.00030199,10]
[344620582,1733622640845,-1895.79,0.00030252,2]
[344620584,1733622640855,-160.0,0.00030256,3]
[344620586,1733622640864,-160.0,0.00030256,5]
[344620588,1733622640873,-160.44,0.000303,31]
[344620590,1733622640882,-160.44,0.000303,31]
[344620592,1733622640891,-666.0,0.00030399,2]
[344620594,1733622640900,-884.00142623,0.00030402,2]
[344620596,1733622640909,-197.54139642,0.00030407,2]
[344620598,1733622640918,-167.0,0.00030411,2]
[344620600,1733622640927,-576.59,0.00030414,6]
[344620602,1733622640936,-160.44,0.000305,31]
[344620604,1733622640946,-160.44,0.000305,31]
[344620606,1733622640955,-157.340357,0.000305,20]
[344620608,1733622640965,-206.90462176,0.00030506,2]
[344620610,1733622640974,-166.14922265,0.00030506,2]
[344620612,1733622640983,-192.53295213,0.00030506,2]
[344620614,1733622640992,-621.12471118,0.00030506,2]
[344620616,1733622641001,-143044.44030845,0.00030507,10]
[344620622,1733622641049,-368740.16143872,0.00030507,10]
[344620863,1733622643296,-4054.95076905,0.00030507,10]
[344620890,1733622643539,-2386.04080242,0.00030507,10]
[344620937,1733622646214,-269.42483266,0.00024857,2]
[344620938,1733622646224,-119506.92893654,0.00030507,10]
[344620939,1733622646237,-5177.86389276,0.00030507,10]
[344620995,1733623832485,-250.0,0.00023768,2]
[344620997,1733623832495,-232.0311392,0.00023779,2]
[344620999,1733623832505,-124.943842,0.00023813,2]
[344621001,1733623832517,-82.9134158,0.00023813,2]
[344621003,1733623832535,-24900.0,0.00024321,2]
[344621005,1733623832545,-3000.0,0.000245,2]
[344621006,1733623832554,-5634.388518,0.0002451,2]
[344621008,1733623832563,-380.0,0.00024658,2]
[344621010,1733623832573,-300.0,0.00024848,2]
[344621012,1733623832582,-300.0,0.00024848,2]
[344621014,1733623832591,-208.05151651,0.00024857,2]
[344621016,1733623832601,-1040.44784007,0.0002491,2]
[344621018,1733623832610,-552.94,0.00024999,2]
[344621020,1733623832619,-351.33336828,0.00024999,2]
[344621022,1733623832628,-255.90531661,0.00024999,2]
[344621024,1733623832637,-572.7272888,0.00024999,2]
[344621026,1733623832646,-613.65863864,0.00024999,2]
[344621028,1733623832655,-516.09091637,0.00024999,2]
[344621030,1733623832664,-500.0,0.00024999,2]
[344621032,1733623832675,-513.5730622,0.00024999,2]
[344621033,1733623832684,-525.84479326,0.00024999,2]
[344621034,1733623832693,-500.0,0.00024999,2]
[344621035,1733623832702,-594.00865294,0.00024999,2]
[344621036,1733623832712,-522.63192176,0.00024999,2]
[344621037,1733623832721,-522.285096,0.00024999,2]
[344621038,1733623832732,-540.51847731,0.00024999,2]
[344621039,1733623832742,-543.44037179,0.00024999,2]
[344621040,1733623832751,-519.19190019,0.00024999,2]
[344621041,1733623832761,-500.0,0.00024999,2]
[344621042,1733623832770,-356.53423536,0.00024999,2]
[344621043,1733623832779,-150.0,0.00025,2]
[344621044,1733623832788,-38544.0,0.00025,2]
[344621045,1733623832798,-2762.16060897,0.0002501,2]
[344621046,1733623832807,-179.793638,0.0002511,2]
[344621047,1733623832817,-552.94,0.00025273,2]
[344621048,1733623832826,-433.66892524,0.00025273,2]
[344621049,1733623832836,-581.09,0.00025273,2]
[344621050,1733623832845,-500.0,0.00025273,2]
[344621051,1733623832854,-552.94,0.00025547,2]
[344621052,1733623832863,-579.33,0.00025547,2]
[344621053,1733623832873,-1040.44784001,0.00025696,2]
[344621054,1733623832882,-552.94,0.00025821,2]
[344621055,1733623832891,-552.94,0.00026095,2]
[344621056,1733623832900,-400.0,0.00026301,2]
[344621057,1733623832910,-2762.16060893,0.0002636,2]
[344621058,1733623832919,-500.0,0.00026368,2]
[344621059,1733623832929,-500.0,0.00026368,2]
[344621060,1733623832938,-500.0,0.00026368,2]
[344621061,1733623832949,-500.0,0.00026368,2]
[344621062,1733623832958,-500.0,0.00026368,2]
[344621063,1733623832967,-500.0,0.00026368,2]
[344621064,1733623832976,-532.6454382,0.00026368,2]
[344621065,1733623832985,-631.97603979,0.00026368,2]
[344621066,1733623832996,-500.0,0.00026368,2]
[344621067,1733623833005,-404.14120828,0.00026368,2]
[344621068,1733623833016,-502.13291116,0.00026368,2]
[344621069,1733623833026,-492.61189365,0.00026368,2]
[344621070,1733623833035,-500.0,0.00026368,2]
[344621071,1733623833045,-500.0,0.00026368,2]
[344621072,1733623833055,-500.0,0.00026368,2]
[344621073,1733623833065,-462.60074697,0.00026368,2]
[344621074,1733623833075,-500.0,0.00026368,2]
[344621075,1733623833084,-500.0,0.00026368,2]
[344621076,1733623833093,-500.0,0.00026368,2]
[344621077,1733623833103,-500.0,0.00026368,2]
[344621078,1733623833112,-401.69886924,0.00026368,2]
[344621079,1733623833122,-577.70983843,0.00026368,2]
[344621080,1733623833133,-500.0,0.00026368,2]
[344621081,1733623833144,-500.0,0.00026368,2]
[344621082,1733623833154,-500.0,0.00026368,2]
[344621083,1733623833164,-500.0,0.00026368,2]
[344621084,1733623833175,-552.94,0.00026369,2]
[344621085,1733623833184,-1040.44784001,0.00026482,2]
[344621086,1733623833194,-552.94,0.00026643,2]
[344621087,1733623833204,-460.75278958,0.00026756,7]
[344621088,1733623833216,-552.94,0.00026917,2]
[344621089,1733623833226,-420.0,0.00026923,2]
[344621090,1733623833236,-552.94,0.00027191,2]
[344621091,1733623833245,-1040.44784001,0.00027268,2]
[344621092,1733623833255,-400.0,0.00027275,2]
[344621093,1733623833264,-420.0,0.00027333,2]
[344621094,1733623833275,-556.91,0.00027397,5]
[344621095,1733623833285,-552.94,0.00027465,2]
[344621096,1733623833295,-150.64,0.00027662,2]
[344621097,1733623833306,-2360.045,0.00027662,2]
[344621098,1733623833315,-2178.572,0.00027662,2]
[344621099,1733623833325,-184.645,0.00027662,2]
[344621100,1733623833335,-2762.16060893,0.00027711,2]
[344621101,1733623833345,-552.94,0.00027739,2]
[344621102,1733623833355,-552.94,0.00028013,2]
[344621103,1733623833364,-1040.44784001,0.00028053,2]
[344621104,1733623833374,-400.0,0.00028248,2]
[344621105,1733623833385,-552.94,0.00028287,2]
[344621106,1733623833395,-552.94,0.00028561,2]
[344621107,1733623833404,-157.36151438,0.00028687,2]
[344621108,1733623833414,-556.91,0.00028767,6]
[344621109,1733623833424,-552.94,0.00028835,2]
[344621110,1733623833433,-153.452,0.0002898,2]
[344621111,1733623833443,-2762.16060893,0.00029061,2]
[344621112,1733623833453,-552.94,0.00029109,2]
[344621113,1733623833463,-587.0,0.00029171,2]
[344621114,1733623833473,-400.0,0.00029221,2]
[344621115,1733623833482,-552.94,0.00029383,2]
[344621116,1733623833492,-9866.01100103,0.00029565,2]
[344621117,1733623833502,-552.94,0.00029657,2]
[344621118,1733623833511,-9866.01100103,0.00029757,2]
[344621119,1733623833522,-1089.44784642,0.00029907,27]
[344621120,1733623833532,-552.94,0.00029931,2]
[344621121,1733623833541,-205.0,0.0003,2]
[344621122,1733623833551,-272.0,0.0003,2]
[344621123,1733623833561,-9866.01100103,0.00030004,2]
[344621124,1733623833571,-587.0,0.00030066,2]
[344621125,1733623833581,-155.11807572,0.00030121,2]
[344621126,1733623833590,-556.91,0.00030136,7]
[344621127,1733623833599,-163.229352,0.00030137,120]
[344621128,1733623833609,-174.19031903,0.00030137,2]
[344621129,1733623833618,-400.0,0.00030194,2]
[344621130,1733623833628,-310620.54702056,0.000302,120]
[344621158,1733623838166,-500.0,0.00026368,2]
[344621160,1733623838178,-1040.44784001,0.00028839,2]
[344621163,1733623838189,-9866.01100105,0.00030194,2]
[344621164,1733623838199,-2402.39646828,0.000302,120]
[344621412,1733623843619,-634.98546176,0.00029625,2]
[344621413,1733623843631,-405.46237825,0.00029625,2]
[344621414,1733623843640,-7272.48378112,0.000302,120]
[344621417,1733623846362,-266.85542991,0.00026368,2]
[344621418,1733623846372,-963.83145937,0.000302,120]
[344621432,1733624915330,385.92671185,0.00015,7]
[344621433,1733624920507,44463.17248024,0.0001999,2]
[344621466,1733625032521,-556.86521642,0.00024999,2]
[344621468,1733625032533,-298.42478358,0.00024999,2]
[344621470,1733625032542,-150.0,0.00025,2]
[344621472,1733625032553,-1118.1246207,0.00025,2]
[344621474,1733625032565,-295.97295916,0.00025,2]
[344621476,1733625032575,-337.93411883,0.00025273,2]
[344621672,1733625038276,-297.60197832,0.00025173,2]
[344621674,1733625038286,-517.35588117,0.00025273,2]
[344621676,1733625038295,-7136.72595197,0.00025353,2]
[344621687,1733625038395,-16612.9988999,0.00025353,2]
[344621878,1733625040376,-1150.27514813,0.00025353,2]
[344621880,1733625040386,-855.29,0.00025547,2]
[344621882,1733625040395,-550.83481421,0.00025821,2]
[344621884,1733625040407,-304.45518579,0.00025821,2]
[344621886,1733625040416,-63.48481421,0.00026,2]
[344622107,1733625043828,-458.62968091,0.00026,2]
[344622108,1733625043838,-855.29,0.00026095,2]
[344622109,1733625043847,-400.0,0.00026301,2]
[344622110,1733625043857,-855.29,0.00026369,2]
[344622111,1733625043866,-300.0,0.00026573,2]
[344622112,1733625043876,-300.0,0.00026574,2]
[344622113,1733625043885,-855.29,0.00026643,2]
[344622114,1733625043894,-517.97513038,0.00026756,7]
[344622115,1733625043904,-203.0713518,0.00026917,2]
[344622116,1733625043915,-652.2186482,0.00026917,2]
[344622117,1733625043924,-12319.82213289,0.00027,2]
[344622118,1733625043935,-18587.04362311,0.00027,2]
[344622119,1733625043946,-5926.67769232,0.00027,2]
[344622120,1733625043956,-173.40797336,0.00027091,2]
[344622121,1733625043965,-855.29,0.00027191,2]
[344622122,1733625043974,-400.0,0.00027275,2]
[344622123,1733625043983,-855.29,0.00027465,2]
[344622124,1733625043993,-855.29,0.00027739,2]
[344622125,1733625044002,-173.40797333,0.00027754,2]
[344622126,1733625044011,-6816.88936064,0.00028,7]
[344622152,1733626021197,172.6957543,0.00013973,2]
[344622191,1733626232786,-150.0,0.00025,2]
[344622193,1733626232796,-500.0,0.00025352,2]
[344622194,1733626232806,-500.0,0.00025626,2]
[344622195,1733626232815,-151.44572887,0.00025677,2]
[344622196,1733626232825,-500.0,0.000259,2]
[344622197,1733626232835,-300.0,0.00025953,2]
[344622198,1733626232850,-300.0,0.00025953,2]
[344622200,1733626232859,-7490.6297824,0.00025954,2]
[344622271,1733626238662,-247.61,0.00025,2]
[344622272,1733626238672,-744.0615384,0.00025954,2]
[344622273,1733626238682,-148.3284616,0.00026174,2]
[344622281,1733626240641,-351.6715384,0.00026174,2]
[344622284,1733626240651,-400.0,0.00026301,2]
[344622285,1733626240661,-500.0,0.00026448,2]
[344622286,1733626240671,-500.0,0.00026722,2]
[344622287,1733626240680,-500.0,0.00026996,2]
[344622288,1733626240690,-500.0,0.00026999,2]
[344622289,1733626240699,-500.0,0.00026999,2]
[344622290,1733626240708,-500.0,0.00026999,2]
[344622291,1733626240718,-16671.0,0.00027,2]
[344622292,1733626240728,-173.40797333,0.0002717,2]
[344622293,1733626240737,-500.0,0.0002727,2]
[344622294,1733626240746,-500.0,0.00027273,2]
[344622295,1733626240756,-500.0,0.00027273,2]
[344622296,1733626240765,-500.0,0.00027273,2]
[344622297,1733626240774,-400.0,0.00027275,2]
[344622298,1733626240786,-513.31,0.00027397,5]
[344622299,1733626240795,-500.0,0.00027544,2]
[344622300,1733626240805,-500.0,0.00027547,2]
[344622301,1733626240815,-500.0,0.00027547,2]
[344622302,1733626240825,-500.0,0.00027547,2]
[344622303,1733626240834,-13854.40925567,0.000278,2]
[344622304,1733626240850,-87846.74009233,0.000278,2]
[344622311,1733626244492,-3182.69883217,0.000278,2]
[344622312,1733626244505,-10223.25319095,0.000278,2]
[344622313,1733626244517,-32399.68423836,0.000278,2]
[344622321,1733626246726,-66001.49401844,0.000278,2]
[344622322,1733626246737,-62689.37588591,0.000278,2]
[344622326,1733626755356,166.249455,0.00013973,2]
[344622530,1733627444160,-191.655719,0.000245,2]
[344622532,1733627444171,-179.793638,0.00025991,2]
[344622534,1733627444180,-151.69414,0.00026,2]
[344622535,1733627444189,-400.0,0.00026301,2]
[344622537,1733627444199,-500.0,0.00026999,2]
[344622539,1733627444208,-500.0,0.00027273,2]
[344622541,1733627444217,-400.0,0.00027275,2]
[344622542,1733627444226,-480.5,0.00027357,15]
[344622543,1733627444235,-500.0,0.00027547,2]
[344622544,1733627444248,-173.40797333,0.000277,2]
[344622545,1733627444258,-300.0,0.00027798,2]
[344622546,1733627444267,-300.0,0.00027798,2]
[344622547,1733627444276,-500.0,0.00027799,2]
[344622548,1733627444287,-500.0,0.00027799,2]
[344622549,1733627444296,-500.0,0.00027799,2]
[344622550,1733627444305,-500.0,0.00027799,2]
[344622551,1733627444314,-16262.45326194,0.000278,2]
[344622552,1733627444441,165.920366,0.00013973,2]
[344622572,1733627447098,-6205.61164452,0.000278,2]
[344622573,1733628105598,165.920366,0.00013973,2]
[344622576,1733628499048,9275.81692889,0.000125,2]
[344622598,1733628631960,-300.0,0.00021999,2]
[344622599,1733628631970,-300.0,0.00021999,2]
[344622601,1733628631984,-180.0,0.00022,2]
[344622603,1733628631994,-25709.43766833,0.00022,2]
[344622604,1733628632003,-180.0,0.00022192,2]
[344622605,1733628632013,-180.0,0.00023014,2]
[344622606,1733628632022,-420.0,0.00023906,2]